bitfinex/quotes_ETHUSD_20241103
["timestamp","ask_amount","ask_price","bid_price","bid_amount"]
[1730632420140,0.7716,2461.9,2461.6,0.16062638]
[1730632420337,0.7716,2461.9,2461.5,0.21920327]
[1730632420537,0.7716,2461.9,2461.6,0.1606331]
[1730632420837,0.7716,2461.9,2461.5,0.21920327]
[1730632421018,0.7716,2461.9,2461.6,0.1606382]
[1730632421218,0.7716,2461.9,2461.5,0.21920327]
[1730632421430,0.7716,2461.9,2461.6,0.16064654]
[1730632421723,0.7716,2461.9,2461.5,0.21920327]
[1730632421930,0.7716,2461.9,2461.6,0.16064715]
[1730632422120,0.7716,2461.9,2461.5,0.21920327]
[1730632422323,0.7716,2461.9,2461.6,0.1606514]
[1730632422639,0.7716,2461.9,2461.5,0.21920327]
[1730632422843,0.7716,2461.9,2461.6,0.16065674]
[1730632423021,0.7716,2461.9,2461.5,1.03630327]
[1730632423223,0.7716,2461.9,2461.6,0.16065996]
[1730632423452,0.7716,2461.9,2461.5,1.03630327]
[1730632423743,0.7716,2461.9,2461.6,0.16066039]
[1730632423946,0.7716,2461.9,2461.5,1.03630327]
[1730632424238,0.7716,2461.9,2461.6,0.16065975]
[1730632424407,0.7716,2461.9,2461.6,0.21708188]
[1730632426508,0.7716,2461.9,2461.7,0.16065405]
[1730632426818,0.7716,2461.9,2461.6,0.21708188]
[1730632427217,0.7716,2461.9,2461.7,0.16066095]
[1730632427423,0.7716,2461.9,2461.7,0.08123344]
[1730632429455,29.9617602,2462.0,2461.7,0.08123344]
[1730632429812,29.9617602,2462.0,2461.8,0.16064209]
[1730632430147,29.9617602,2462.0,2461.6,0.29831514]
[1730632430449,29.9617602,2462.0,2461.7,0.1606292]
[1730632430615,29.9617602,2462.0,2461.8,0.1606292]
[1730632430817,29.9617602,2462.0,2461.6,0.29831514]
[1730632431053,29.9617602,2462.0,2461.7,0.16062677]
[1730632431222,29.9617602,2462.0,2461.8,0.16062677]
[1730632431554,29.9617602,2462.0,2461.9,0.16059972]
[1730632431725,29.9617602,2462.0,2461.9,0.41910159]
[1730632434414,29.9617602,2462.0,2461.9,0.25850187]
[1730632434626,29.9617602,2462.0,2461.9,0.41900397]
[1730632438947,29.9617602,2462.0,2461.9,0.1605021]
[1730632439137,29.9617602,2462.0,2461.7,0.80674602]
[1730632439341,29.9617602,2462.0,2461.8,0.16043827]
[1730632439563,29.9617602,2462.0,2461.7,0.80674602]
[1730632439785,29.9617602,2462.0,2461.8,0.16043852]
[1730632439989,29.9617602,2462.0,2461.7,0.55]
[1730632440160,29.9617602,2462.0,2461.8,0.16044326]
[1730632440485,29.9617602,2462.0,2461.7,0.8067318]
[1730632440788,29.9617602,2462.0,2461.8,0.38052187]
[1730632440990,29.9617602,2462.0,2461.8,0.22008608]
[1730632468348,29.9617602,2462.0,2461.9,0.1605078]
[1730632468841,29.9617602,2462.0,2461.8,0.22008608]
[1730632469026,29.9617602,2462.0,2461.9,0.16051057]
[1730632469738,29.9617602,2462.0,2461.9,0.94201057]
[1730632469945,29.9617602,2462.0,2461.9,1.15561754]
[1730632472651,29.9617602,2462.0,2461.9,0.16051057]
[1730632476306,29.9617602,2462.0,2461.7,0.97397309]
[1730632476517,29.9617602,2462.0,2461.8,0.41789209]
[1730632476754,29.9617602,2462.0,2461.9,0.16071742]
[1730632477908,29.9617602,2462.0,2461.9,0.41794077]
[1730632479552,29.9617602,2462.0,2461.9,0.41797103]
[1730632483551,29.9617602,2462.0,2461.9,0.96797103]
[1730632485934,29.9617602,2462.0,2461.9,1.67362939]
[1730632486549,29.9617602,2462.0,2461.9,0.96797103]
[1730632488267,29.9617602,2462.0,2461.9,0.55]
[1730632488779,29.9617602,2462.0,2461.8,0.55]
[1730632488975,29.9617602,2462.0,2461.8,0.96031748]
[1730632490183,29.9617602,2462.0,2461.9,0.96792789]
[1730632490685,29.9617602,2462.0,2461.9,1.67351963]
[1730632491049,29.9617602,2462.0,2461.9,0.96792789]
[1730632492690,29.9617602,2462.0,2461.9,0.55]
[1730632492996,29.9617602,2462.0,2461.9,0.96791104]
[1730632493693,29.9617602,2462.0,2461.9,1.23335599]
[1730632496209,29.9617602,2462.0,2461.9,1.23335092]
[1730632499712,29.9617602,2462.0,2461.9,0.97616743]
[1730632500014,29.9617602,2462.0,2461.9,0.81544495]
[1730632500219,29.9617602,2462.0,2461.9,1.23334772]
[1730632503931,30.7427602,2462.0,2461.9,1.23334772]
[1730632504098,30.7427602,2462.0,2461.9,0.96790277]
[1730632505613,30.7427602,2462.0,2461.8,0.55]
[1730632505901,30.7427602,2462.0,2461.9,0.96787787]
[1730632507436,30.7427602,2462.0,2461.9,0.41787787]
[1730632507645,30.7427602,2462.0,2461.9,0.16071209]
[1730632509115,30.7427602,2462.0,2461.9,0.16071794]
[1730632509627,0.781,2461.9,2461.7,0.42397309]
[1730632509824,0.781,2461.9,2461.8,0.16070575]
[1730632511755,0.781,2461.9,2461.8,0.160686]
[1730632516226,0.781,2461.9,2461.8,0.16065621]
[1730632516546,3.85527602,2461.9,2461.7,0.42397309]
[1730632516735,0.7896,2461.8,2461.5,0.25704659]
[1730632516934,0.7896,2461.8,2461.6,0.16063445]
[1730632517150,0.7896,2461.7,2461.4,0.80701681]
[1730632517385,0.7896,2461.7,2461.5,0.16061761]
[1730632517675,0.7896,2461.7,2461.6,0.16061761]
[1730632519157,0.7896,2461.7,2461.4,0.25695259]
[1730632519358,0.7896,2461.7,2461.5,0.16054485]
[1730632519543,0.7896,2461.7,2461.3,0.55]
[1730632519966,0.7896,2461.7,2461.4,0.32105165]
[1730632520280,0.7896,2461.7,2461.5,0.16052512]
[1730632520444,0.7896,2461.7,2461.4,0.16052653]
[1730632520643,0.7896,2461.7,2461.5,0.1604868]
[1730632520854,0.7896,2461.7,2461.4,0.16052653]
[1730632521084,0.7896,2461.7,2461.5,0.16048305]
[1730632521247,0.7896,2461.7,2461.4,0.16052653]
[1730632521561,0.7896,2461.7,2461.5,0.16045695]
[1730632521771,0.7896,2461.7,2461.4,0.16052653]
[1730632522084,0.7896,2461.7,2461.5,0.16046162]
[1730632522259,0.7896,2461.7,2461.4,0.16052653]
[1730632522449,0.7896,2461.7,2461.5,0.16043415]
[1730632522650,0.7896,2461.7,2461.4,0.16052653]
[1730632522849,0.7896,2461.7,2461.5,0.16042753]
[1730632523050,0.7896,2461.7,2461.4,0.16052653]
[1730632524989,0.7896,2461.7,2461.5,0.16031643]
[1730632525155,0.7896,2461.7,2461.4,0.16052653]
[1730632528661,0.7896,2461.7,2461.2,0.42372604]
[1730632551314,0.7896,2461.7,2460.9,0.2564271]
[1730632551514,0.7896,2461.7,2460.9,0.42206708]
[1730632556983,0.7896,2461.7,2460.5,0.25661635]
[1730632557219,0.7896,2461.7,2460.4,1.90966904]
[1730632557220,0.7896,2461.7,2460.6,0.1604267]
[1730632557430,0.7896,2461.7,2460.4,0.67887946]
[1730632557608,0.7896,2461.7,2460.4,0.42226311]
[1730632557813,0.8258,2461.6,2460.5,0.16042039]
[1730632557983,0.8258,2461.6,2460.6,0.16042039]
[1730632558322,0.8258,2461.6,2460.4,0.67896229]
[1730632558525,0.8258,2461.6,2460.5,0.16038964]
[1730632558813,0.8258,2461.6,2460.6,0.16038964]
[1730632559020,0.8258,2461.6,2460.4,1.02725454]
[1730632559223,0.8258,2461.6,2460.5,0.16037355]
[1730632559396,0.8258,2461.6,2460.6,0.16037355]
[1730632559580,0.8258,2461.6,2460.4,0.42226311]
[1730632559782,0.8258,2461.6,2460.5,0.16036603]
[1730632560031,0.8258,2461.6,2460.4,0.42226311]
[1730632560320,0.8258,2461.6,2460.5,0.16036527]
[1730632560492,0.8258,2461.6,2460.6,0.16036527]
[1730632560692,0.8258,2461.6,2460.4,0.42226311]
[1730632560888,0.8158,2461.6,2460.5,0.16039402]
[1730632561233,0.8158,2461.6,2460.6,0.16039402]
[1730632561396,0.8158,2461.6,2460.4,1.68624756]
[1730632561591,0.8158,2461.6,2460.5,0.16041169]
[1730632561791,0.8158,2461.6,2460.6,0.16041169]
[1730632561997,0.8158,2461.6,2460.4,1.42959956]
[1730632562214,0.8158,2461.6,2460.5,0.16038567]
[1730632562397,0.8158,2461.6,2460.6,0.16038567]
[1730632562597,0.8158,2461.6,2460.4,1.42959956]
[1730632562931,0.8158,2461.6,2460.5,0.16037601]
[1730632563132,0.8158,2461.6,2460.4,1.42959956]
[1730632563497,0.8158,2461.6,2460.5,0.16034723]
[1730632563925,0.8158,2461.6,2460.6,0.16034723]
[1730632564131,0.8158,2461.6,2460.5,0.55]
[1730632564342,0.8158,2461.6,2460.7,1.3099]
[1730632564517,0.8158,2461.6,2460.8,0.16032533]
[1730632564833,0.8158,2461.6,2460.9,0.16032533]
[1730632565029,0.8158,2461.6,2460.7,1.3099]
[1730632565245,0.8158,2461.6,2460.8,0.16028572]
[1730632565535,0.8158,2461.6,2460.9,0.16028572]
[1730632565734,0.8158,2461.6,2460.8,0.30062309]
[1730632565899,0.8158,2461.6,2460.9,0.16027589]
[1730632566096,0.8158,2461.6,2460.8,0.30062309]
[1730632566298,0.8158,2461.6,2460.9,0.16028373]
[1730632566499,0.8158,2461.6,2460.8,0.30062309]
[1730632566725,0.8158,2461.6,2460.9,0.16028999]
[1730632567041,0.8158,2461.6,2460.8,0.30062309]
[1730632567215,0.8158,2461.6,2460.9,0.16029805]
[1730632567409,0.8158,2461.6,2460.8,0.30062309]
[1730632567625,0.8158,2461.6,2460.9,0.16030903]
[1730632567834,0.8158,2461.6,2460.8,0.30062309]
[1730632568029,0.8158,2461.6,2460.9,0.16029323]
[1730632568208,0.8158,2461.6,2461.0,0.16029323]
[1730632568533,0.8158,2461.6,2460.8,0.63838758]
[1730632568740,0.8158,2461.6,2460.9,0.16029956]
[1730632568916,0.8158,2461.6,2461.0,0.16030678]
[1730632569110,0.8158,2461.6,2460.8,0.55712184]
[1730632569428,0.8158,2461.6,2460.9,0.16031217]
[1730632569631,0.8158,2461.6,2461.0,0.16031217]
[1730632569942,0.8158,2461.6,2460.9,0.21085999]
[1730632570108,0.8158,2461.6,2461.0,0.16030677]
[1730632570302,0.8158,2461.6,2460.9,0.21085999]
[1730632570739,0.8158,2461.6,2461.0,0.16031442]
[1730632570915,0.8158,2461.6,2460.9,0.21085999]
[1730632571115,0.8158,2461.6,2461.0,0.1603167]
[1730632571328,0.8158,2461.6,2460.9,0.21085999]
[1730632571656,0.8158,2461.6,2461.0,0.16032732]
[1730632571855,0.8158,2461.6,2460.9,0.21085999]
[1730632572018,0.8158,2461.6,2461.0,0.16034084]
[1730632572215,0.8158,2461.6,2460.9,0.21085999]
[1730632572442,0.8158,2461.6,2461.0,0.16033782]
[1730632572648,0.8158,2461.6,2461.1,0.16033782]
[1730632572828,0.8158,2461.6,2461.0,0.7831]
[1730632573013,0.8158,2461.6,2461.1,0.71031857]
[1730632573240,0.8158,2461.6,2461.2,0.16031857]
[1730632573445,0.8158,2461.6,2461.1,0.55]
[1730632573622,0.8158,2461.6,2461.2,0.16032006]
[1730632573823,0.8158,2461.6,2461.1,0.83564342]
[1730632574353,0.8158,2461.6,2461.0,0.55]
[1730632574519,0.8158,2461.6,2461.1,0.16032932]
[1730632574723,0.8158,2461.6,2461.0,0.55]
[1730632574937,0.8158,2461.6,2461.1,0.16033064]
[1730632575149,0.8158,2461.6,2461.0,0.55]
[1730632575356,0.8158,2461.6,2461.1,0.16033284]
[1730632575525,0.8158,2461.6,2461.0,0.55]
[1730632575852,0.8158,2461.6,2461.1,0.16034016]
[1730632576063,0.8158,2461.6,2461.0,0.55]
[1730632576236,0.8158,2461.6,2461.1,0.16033918]
[1730632576560,0.8158,2461.6,2461.0,0.55]
[1730632576765,0.8158,2461.6,2461.1,0.16034501]
[1730632577067,0.8158,2461.6,2461.0,0.80655892]
[1730632577260,0.8158,2461.6,2461.1,0.1603509]
[1730632577475,0.8158,2461.6,2461.2,0.1603509]
[1730632577669,0.8158,2461.6,2461.0,0.55]
[1730632577878,29.9617602,2462.0,2461.2,0.55]
[1730632577879,0.8273,2461.8,2461.2,0.55]
[1730632578167,0.8273,2461.8,2461.3,0.16028729]
[1730632578332,0.8273,2461.8,2461.2,0.55]
[1730632578522,0.8273,2461.8,2461.3,0.24152963]
[1730632578734,0.8273,2461.8,2461.4,0.16027726]
[1730632578938,0.8273,2461.8,2461.4,0.55]
[1730632579158,0.8273,2461.8,2461.4,1.3331]
[1730632579961,30.7890602,2462.0,2461.5,0.24145505]
[1730632580142,30.7890602,2462.0,2461.5,0.08124215]
[1730632580341,30.7890602,2462.0,2461.4,1.3331]
[1730632580585,30.7890602,2462.0,2461.5,0.16018216]
[1730632580792,30.7890602,2462.0,2461.4,1.3331]
[1730632581081,30.7890602,2462.0,2461.5,0.16018035]
[1730632581278,30.7890602,2462.0,2461.4,1.3331]
[1730632581466,30.7890602,2462.0,2461.5,0.16015047]
[1730632581669,30.7890602,2462.0,2461.5,0.45744921]
[1730632581997,30.7890602,2462.0,2461.6,0.16014341]
[1730632582156,30.7890602,2462.0,2461.4,1.41434166]
[1730632582358,30.7890602,2462.0,2461.5,0.16013272]
[1730632582542,30.7890602,2462.0,2461.4,4.41434166]
[1730632582543,30.7890602,2462.0,2461.4,1.41434166]
[1730632582747,30.7890602,2462.0,2461.5,0.62720632]
[1730632583081,30.7890602,2462.0,2461.6,0.1601179]
[1730632583282,30.7890602,2462.0,2461.6,0.55]
[1730632583667,30.7890602,2462.0,2461.6,0.71007684]
[1730632583854,30.7890602,2462.0,2461.6,0.55]
[1730632584447,30.7890602,2462.0,2461.6,0.71008489]
[1730632585199,30.7890602,2462.0,2461.6,0.55]
[1730632587170,30.7890602,2462.0,2461.5,0.55]
[1730632587893,0.8299,2461.9,2461.5,0.55]
[1730632588100,0.8299,2461.9,2461.3,0.55]
[1730632588400,0.8299,2461.9,2461.5,0.55]
[1730632588759,0.8299,2461.9,2461.3,0.55]
[1730632588964,0.8299,2461.9,2461.3,0.70997557]
[1730632589298,0.8299,2461.9,2461.3,0.55]
[1730632589499,0.8299,2461.9,2461.3,0.70997557]
[1730632589793,0.8299,2461.9,2461.3,0.55]
[1730632590038,0.8299,2461.9,2461.3,0.70997557]
[1730632590295,0.8299,2461.9,2461.3,0.55]
[1730632590475,0.8299,2461.9,2461.3,0.70997557]
[1730632590672,0.8299,2461.9,2461.3,0.55]
[1730632591587,0.8299,2461.9,2461.3,0.70997557]
[1730632591798,0.8299,2461.9,2461.5,0.55]
[1730632593702,0.8299,2461.9,2461.3,0.55]
[1730632594203,0.8299,2461.9,2461.5,0.55]
[1730632595705,0.8299,2461.9,2461.3,0.55]
[1730632596172,0.8299,2461.9,2461.2,0.55]
[1730632598615,0.8299,2461.9,2461.4,0.55]
[1730632599028,0.8299,2461.9,2461.3,0.55]
[1730632599246,0.8299,2461.9,2461.2,0.55]
[1730632600045,0.8299,2461.9,2461.1,0.4216853]
[1730632610052,0.8299,2461.9,2461.1,0.58170096]
[1730632610356,29.9617602,2462.0,2461.1,0.4216853]
[1730632610357,0.8299,2461.7,2461.1,0.4216853]
[1730632624119,0.8299,2461.7,2461.2,0.08125809]
[1730632624402,0.8299,2461.7,2461.4,0.55]
[1730632624715,0.8299,2461.7,2461.2,0.55]
[1730632624920,0.8299,2461.7,2461.4,0.55]
[1730632625078,0.8299,2461.7,2461.2,0.55]
[1730632625079,0.8299,2461.7,2461.2,0.97117213]
[1730632625281,0.8299,2461.7,2461.4,0.55]
[1730632625486,0.8299,2461.7,2461.3,0.4980672]
[1730632626124,0.8299,2461.7,2461.2,1.05242203]
[1730632626283,0.8299,2461.7,2461.3,0.7532]
[1730632626481,0.8299,2461.7,2461.4,0.55]
[1730632627000,0.8167,2461.9,2461.4,0.55]
[1730632628330,0.8167,2461.9,2461.4,0.63124401]
[1730632628698,0.8167,2461.9,2461.5,0.16011537]
[1730632629007,0.8167,2461.9,2461.4,0.63124401]
[1730632629211,0.8167,2461.9,2461.5,0.16011864]
[1730632629411,0.8167,2461.9,2461.4,0.63124401]
[1730632629924,0.8167,2461.9,2461.5,0.1601253]
[1730632630144,0.8167,2461.9,2461.4,0.63124401]
[1730632630332,0.8167,2461.9,2461.7,0.55]
[1730632630696,0.8167,2461.9,2461.5,0.55]
[1730632630902,0.8167,2461.9,2461.4,3.0]
[1730632630903,0.8167,2461.9,2461.7,0.55]
[1730632631434,0.8167,2461.9,2461.5,0.55]
[1730632631632,29.9617602,2462.0,2461.7,0.55]
[1730632633263,29.9617602,2462.0,2461.9,1.3744]
[1730632633411,29.9617602,2462.0,2461.9,1.53448666]
[1730632633931,29.9617602,2462.0,2461.9,1.79331531]
[1730632634529,29.9617602,2462.0,2461.9,0.96891531]
[1730632634845,29.96088614,2462.0,2461.9,0.96891531]
[1730632635213,29.96088614,2462.0,2461.9,0.80882865]
[1730632635407,29.96088614,2462.0,2461.9,0.96891531]
[1730632635615,29.96088614,2462.0,2461.9,0.80882865]
[1730632635823,29.96088614,2462.0,2461.9,0.96891531]
[1730632636025,29.96088614,2462.0,2461.9,0.80882865]
[1730632636442,29.96088614,2462.0,2461.9,1.3744]
[1730632636749,29.96088614,2462.0,2461.9,1.53434725]
[1730632636953,29.96088614,2462.0,2461.9,2.23623363]
[1730632637307,29.96088614,2462.0,2461.9,1.53432981]
[1730632638119,29.96088614,2462.0,2461.9,4.53432981]
[1730632638442,29.96088614,2462.0,2461.9,1.98976279]
[1730632638624,29.96088614,2462.0,2461.9,1.82983298]
[1730632638828,29.96088614,2462.0,2461.9,4.98976279]
[1730632639031,29.96088614,2462.0,2461.9,1.98976279]
[1730632639345,29.96088614,2462.0,2461.9,4.98976279]
[1730632639747,29.96088614,2462.0,2461.9,1.98976279]
[1730632640153,29.96088614,2462.0,2461.9,1.82983298]
[1730632640328,29.96088614,2462.0,2461.9,1.98958716]
[1730632640726,29.96088614,2462.0,2461.9,1.82983298]
[1730632641054,29.96088614,2462.0,2461.9,1.98958716]
[1730632641355,29.96088614,2462.0,2461.9,1.82983298]
[1730632643556,29.96088614,2462.0,2461.9,1.3744]
[1730632645131,29.96088614,2462.0,2461.9,4.3744]
[1730632645454,29.96088614,2462.0,2461.9,1.3744]
[1730632660449,29.96088614,2462.0,2461.9,1.53387366]
[1730632660649,29.96088614,2462.0,2461.9,1.3744]
[1730632660965,29.96088614,2462.0,2461.9,1.87189333]
[1730632661676,29.96088614,2462.0,2461.9,1.88189333]
[1730632661880,29.96088614,2462.0,2461.9,2.05114822]
[1730632662211,29.11414529,2462.0,2461.9,2.05114822]
[1730632662776,29.11414529,2462.0,2461.9,2.05115315]
[1730632663000,29.11414529,2462.0,2461.9,1.89189333]
[1730632663272,27.60897213,2462.0,2461.9,5.75116489]
[1730632663477,27.60897213,2462.0,2461.9,6.80118251]
[1730632663815,25.15906832,2462.0,2461.9,6.30368918]
[1730632664116,25.15906832,2462.0,2461.9,7.15699812]
[1730632664280,25.15906832,2462.0,2461.9,7.41184008]
[1730632664484,25.15906832,2462.0,2461.9,7.15699812]
[1730632664677,25.15906832,2462.0,2461.9,6.14442936]
[1730632665009,25.15906832,2462.0,2461.9,6.30367974]
[1730632665237,25.15906832,2462.0,2461.9,7.15698868]
[1730632665519,25.15906832,2462.0,2461.9,7.41181553]
[1730632666421,25.15906832,2462.0,2461.9,7.15698868]
[1730632667121,25.15906832,2462.0,2461.9,7.51235234]
[1730632668215,25.15906832,2462.0,2461.9,7.09827511]
[1730632668391,25.15906832,2462.0,2461.9,11.79051361]
[1730632668588,25.15906832,2462.0,2461.9,12.10917124]
[1730632668810,25.15906832,2462.0,2461.9,12.10965121]
[1730632669232,25.15906832,2462.0,2461.9,11.25634227]
[1730632669388,25.15906832,2462.0,2461.9,11.7846799]
[1730632669588,25.15906832,2462.0,2461.9,12.10335608]
[1730632670120,25.15906832,2462.0,2461.9,13.93762696]
[1730632671030,25.15906832,2462.0,2461.9,13.93799229]
[1730632672026,25.15906832,2462.0,2461.9,13.68300773]
[1730632672191,25.15906832,2462.0,2461.9,13.93807998]
[1730632672601,25.15906832,2462.0,2461.9,12.65811657]
[1730632672786,25.15906832,2462.0,2461.9,14.36473446]
[1730632673012,25.15906832,2462.0,2461.9,13.92957578]
[1730632673210,25.15906832,2462.0,2461.9,14.36684809]
[1730632673391,25.15906832,2462.0,2461.9,12.6602302]
[1730632673789,25.15906832,2462.0,2461.9,12.55969339]
[1730632674035,25.15906832,2462.0,2461.9,8.15208298]
[1730632674333,25.15906832,2462.0,2461.9,6.45880982]
[1730632674622,25.15906832,2462.0,2461.9,6.03526787]
[1730632675038,25.15906832,2462.0,2461.9,0.86045292]
[1730632675242,25.15906832,2462.0,2461.9,0.94168111]
[1730632675522,25.15906832,2462.0,2461.9,0.70104918]
[1730632675728,25.15906832,2462.0,2461.9,0.9418955]
[1730632676290,25.15906832,2462.0,2461.9,2.59547969]
[1730632676553,25.15906832,2462.0,2461.9,5.59547969]
[1730632676726,25.15906832,2462.0,2461.9,6.64705347]
[1730632677092,25.15906832,2462.0,2461.9,5.59547969]
[1730632677296,25.15906832,2462.0,2461.9,6.64705347]
[1730632677815,25.15906832,2462.0,2461.9,6.65731205]
[1730632678003,25.15906832,2462.0,2461.9,7.00199985]
[1730632678213,25.15906832,2462.0,2461.9,8.02269985]
[1730632679023,25.15906832,2462.0,2461.9,7.02161492]
[1730632679223,25.15906832,2462.0,2461.9,7.7031444]
[1730632679443,25.15906832,2462.0,2461.9,8.34280575]
[1730632680367,24.24482015,2462.0,2461.9,8.34280575]
[1730632681134,24.24482015,2462.0,2461.9,8.02368785]
[1730632681331,24.24482015,2462.0,2461.9,7.7042125]
[1730632681566,24.24482015,2462.0,2461.9,7.28868258]
[1730632681733,24.24482015,2462.0,2461.9,7.97075644]
[1730632684578,23.73482015,2462.0,2461.9,6.26413855]
[1730632684777,23.73482015,2462.0,2461.9,7.96301942]
[1730632684983,23.73482015,2462.0,2461.9,7.28094556]
[1730632685199,23.73482015,2462.0,2461.9,7.96305871]
[1730632685557,23.73482015,2462.0,2461.9,7.96303753]
[1730632686994,23.73482015,2462.0,2461.9,7.96271508]
[1730632687142,23.73482015,2462.0,2461.9,7.96270723]
[1730632688199,22.22958886,2462.0,2461.9,8.38728302]
[1730632688770,22.22958886,2462.0,2461.9,6.26415666]
[1730632689305,22.22958886,2462.0,2461.9,7.96272236]
[1730632690276,22.22958886,2462.0,2461.9,7.96290028]
[1730632691289,22.22958886,2462.0,2461.9,7.69641687]
[1730632691999,22.22958886,2462.0,2461.9,7.01430372]
[1730632692207,22.22958886,2462.0,2461.9,7.69288498]
[1730632692413,22.22958886,2462.0,2461.9,7.69288133]
[1730632692914,22.22958886,2462.0,2461.9,14.56847844]
[1730632693118,22.22958886,2462.0,2461.9,12.18001903]
[1730632693272,22.22958886,2462.0,2461.9,7.90201903]
[1730632694579,22.22958886,2462.0,2461.9,7.90223498]
[1730632694779,22.22958886,2462.0,2461.9,7.90214664]
[1730632695210,21.31539375,2462.0,2461.9,7.90214664]
[1730632698715,21.31539375,2462.0,2461.9,10.45034167]
[1730632699151,21.31539375,2462.0,2461.9,6.78634228]
[1730632699282,21.31539375,2462.0,2461.9,10.45035656]
[1730632702220,20.4688056,2462.0,2461.9,7.9021576]
[1730632702419,20.4688056,2462.0,2461.9,10.45035656]
[1730632702591,20.4688056,2462.0,2461.9,7.9021576]
[1730632703662,20.4688056,2462.0,2461.9,7.90223967]
[1730632704338,20.4688056,2462.0,2461.9,6.58073967]
[1730632704533,20.4688056,2462.0,2461.9,3.87892539]
[1730632704713,21.2787056,2462.0,2461.9,3.87892539]
[1730632704914,21.2787056,2462.0,2461.9,3.53546537]
[1730632705152,21.2787056,2462.0,2461.9,3.9601517]
[1730632705648,20.4688056,2462.0,2461.9,3.96014916]
[1730632705849,20.4688056,2462.0,2461.9,7.56875513]
[1730632706050,20.4688056,2462.0,2461.9,7.44005591]
[1730632706223,20.4688056,2462.0,2461.9,5.99488413]
[1730632706430,20.4688056,2462.0,2461.9,8.11898964]
[1730632707254,20.4688056,2462.0,2461.9,9.52031092]
[1730632707854,20.4688056,2462.0,2461.9,5.99488413]
[1730632708065,20.4688056,2462.0,2461.9,4.23893373]
[1730632708233,20.4688056,2462.0,2461.9,5.99604453]
[1730632708551,20.4688056,2462.0,2461.9,8.12104626]
[1730632708924,20.4688056,2462.0,2461.9,7.43088743]
[1730632709447,20.4688056,2462.0,2461.9,7.01721069]
[1730632709760,20.4688056,2462.0,2461.9,7.42879706]
[1730632710953,20.4688056,2462.0,2461.9,5.72869717]
[1730632711153,20.4688056,2462.0,2461.9,7.00387163]
[1730632711355,20.4688056,2462.0,2461.9,7.42879706]
[1730632711515,20.4688056,2462.0,2461.9,5.72869717]
[1730632711720,20.4688056,2462.0,2461.9,7.00383919]
[1730632711928,20.4688056,2462.0,2461.9,5.72869717]
[1730632712243,20.4688056,2462.0,2461.9,7.00382381]
[1730632712443,20.4688056,2462.0,2461.9,7.00381116]
[1730632712756,20.4688056,2462.0,2461.9,7.00392261]
[1730632712963,20.4688056,2462.0,2461.9,7.42892483]
[1730632713763,20.4688056,2462.0,2461.9,7.00387411]
[1730632714260,20.4688056,2462.0,2461.9,7.0038768]
[1730632714847,20.4688056,2462.0,2461.9,7.00385696]
[1730632715156,20.4688056,2462.0,2461.9,7.00385535]
[1730632716159,20.4688056,2462.0,2461.9,6.45385535]
[1730632716462,21.2506056,2462.0,2461.9,6.02891027]
[1730632716665,21.2506056,2462.0,2461.9,4.76723857]
[1730632716970,21.2506056,2462.0,2461.9,4.12447016]
[1730632717270,21.2506056,2462.0,2461.9,3.11027904]
[1730632717469,21.2506056,2462.0,2461.9,5.81017226]
[1730632717629,21.2506056,2462.0,2461.9,5.72894238]
[1730632718723,21.2506056,2462.0,2461.9,5.72894238]
[1730632719280,21.2506056,2462.0,2461.9,4.42123482]
[1730632719481,21.2506056,2462.0,2461.9,4.67452179]
[1730632719876,21.2506056,2462.0,2461.9,4.42123482]
[1730632720082,21.2506056,2462.0,2461.9,1.41123482]
[1730632720573,21.2506056,2462.0,2461.9,0.70828776]
[1730632723729,21.2506056,2462.0,2461.9,0.15819111]
[1730632723892,21.2506056,2462.0,2461.9,0.70819111]
[1730632724091,21.2506056,2462.0,2461.9,0.86638208]
[1730632724292,21.2506056,2462.0,2461.9,0.70819097]
[1730632724492,21.2506056,2462.0,2461.9,0.55]
[1730632724706,21.2506056,2462.0,2461.9,0.70819097]
[1730632724920,21.2506056,2462.0,2461.9,0.55]
[1730632725120,21.2506056,2462.0,2461.9,0.70819097]
[1730632725391,21.2506056,2462.0,2461.9,0.55]
[1730632725594,21.2506056,2462.0,2461.9,0.70819097]
[1730632725794,21.2506056,2462.0,2461.9,0.55]
[1730632726019,21.2506056,2462.0,2461.9,0.70819097]
[1730632726202,21.2506056,2462.0,2461.9,0.55]
[1730632726405,21.2506056,2462.0,2461.9,0.70819097]
[1730632726602,21.2506056,2462.0,2461.9,0.55]
[1730632726900,21.2506056,2462.0,2461.9,0.70819097]
[1730632727095,21.2506056,2462.0,2461.9,0.55]
[1730632727317,21.2506056,2462.0,2461.9,0.70813696]
[1730632727722,21.2506056,2462.0,2461.9,0.55]
[1730632728415,21.2506056,2462.0,2461.9,3.55]
[1730632728628,21.2506056,2462.0,2461.9,0.55]
[1730632730934,21.2506056,2462.0,2461.8,0.55]
[1730632731836,21.2506056,2462.0,2461.8,0.70808796]
[1730632732803,21.2506056,2462.0,2461.8,0.55]
[1730632742750,21.2506056,2462.0,2461.7,0.42105966]
[1730632742751,0.7651,2461.9,2461.7,0.42105966]
[1730632743836,1.62649372,2461.9,2461.7,0.42105966]
[1730632744155,0.7651,2461.8,2461.7,0.42105966]
[1730632753085,0.7651,2461.8,2461.7,0.97105966]
[1730632753386,20.4688056,2462.0,2461.7,0.97105966]
[1730632753554,21.2839056,2462.0,2461.8,0.55]
[1730632756753,23.41229616,2462.0,2461.8,0.55]
[1730632756955,0.8151,2461.9,2461.7,0.42105966]
[1730632769418,20.4688056,2462.0,2461.9,0.55]
[1730632769875,20.4688056,2462.0,2461.9,0.70828202]
[1730632770198,20.4688056,2462.0,2461.9,0.70825477]
[1730632770400,20.4688056,2462.0,2461.9,0.55]
[1730632770691,20.4688056,2462.0,2461.9,0.70826071]
[1730632777291,20.4688056,2462.0,2461.9,0.55]
[1730632777492,20.4688056,2462.0,2461.9,0.70821465]
[1730632778628,20.4688056,2462.0,2461.9,1.53961465]
[1730632780089,20.4688056,2462.0,2461.9,2.24202512]
[1730632780294,20.4688056,2462.0,2461.9,1.53961465]
[1730632780725,20.4688056,2462.0,2461.9,2.17499883]
[1730632780999,20.4688056,2462.0,2461.9,2.25195851]
[1730632781205,20.4688056,2462.0,2461.9,2.09376851]
[1730632781538,20.4688056,2462.0,2461.9,2.25194843]
[1730632782425,20.4688056,2462.0,2461.9,1.54957992]
[1730632783794,20.4688056,2462.0,2461.9,1.3914]
[1730632784118,20.4688056,2462.0,2461.9,1.54957992]
[1730632784325,20.4688056,2462.0,2461.9,1.3914]
[1730632784630,20.4688056,2462.0,2461.9,0.15817992]